fUSD/lending_fUSD_20260524
["ID","MTS","AMOUNT","RATE_DAILY","PERIOD"]
[422917252,1779622243000,-276.52915666,0.00030891,7]
[422917253,1779622243000,-469.958842,0.00030891,7]
[422917250,1779622243000,-206.54,0.000308,10]
[422917254,1779622243000,-375.59163623,0.00030891,7]
[422917247,1779622243000,-154.56202872,0.00030791,2]
[422917245,1779622243000,-280.75,0.00030727,2]
[422917242,1779622243000,-25000.0,0.00030713,10]
[422917246,1779622243000,-2203.36,0.00030768,7]
[422917256,1779622243000,-252.72639412,0.00030891,7]
[422917249,1779622243000,-9227.47,0.000308,14]
[422917248,1779622243000,-2564.35398558,0.000308,31]
[422917251,1779622243000,-252.5184333,0.00030891,7]
[422917264,1779622243000,-249.97723047,0.00030892,2]
[422917258,1779622243000,-274.14008309,0.00030891,7]
[422917257,1779622243000,-260.31859651,0.00030891,7]
[422917255,1779622243000,-246.27680641,0.00030891,7]
[422917259,1779622243000,-279.69121662,0.00030891,7]
[422917263,1779622243000,-246.73413882,0.00030892,2]
[422917273,1779622243000,-212.67037448,0.00030892,7]
[422917266,1779622243000,-211.33165354,0.00030892,7]
[422917265,1779622243000,-229.73872237,0.00030892,7]
[422917262,1779622243000,-233.37285994,0.00030892,7]
[422917268,1779622243000,-153.35034795,0.00030892,7]
[422917270,1779622243000,-242.58810723,0.00030892,2]
[422917243,1779622243000,-9586.494895,0.00030713,10]
[422917261,1779622243000,-290.64585444,0.00030891,7]
[422917241,1779622243000,-1142.64,0.000307,7]
[422917221,1779622243000,-336.67576175,0.00030259,7]
[422917236,1779622243000,-164.0,0.00030441,3]
[422917213,1779622243000,-9227.47,0.000302,14]
[422917212,1779622243000,-2988.6,0.000302,2]
[422917215,1779622243000,-151.0,0.00030239,2]
[422917218,1779622243000,-361.01859203,0.00030259,7]
[422917217,1779622243000,-657.84922935,0.00030259,7]
[422917219,1779622243000,-325.0865855,0.00030259,7]
[422917220,1779622243000,-311.22083256,0.00030259,7]
[422917223,1779622243000,-307.34030675,0.00030259,2]
[422917216,1779622243000,-370.70367184,0.00030259,7]
[422917222,1779622243000,-486.35007956,0.00030259,7]
[422917224,1779622243000,-368.1774332,0.00030259,7]
[422917225,1779622243000,-597.78909165,0.00030259,7]
[422917226,1779622243000,-669.80452418,0.00030259,7]
[422917227,1779622243000,-402.05660366,0.00030259,7]
[422917229,1779622243000,-402.65557427,0.00030259,7]
[422917239,1779622243000,-517.0,0.00030629,7]
[422917230,1779622243000,-319.12347368,0.00030259,7]
[422917228,1779622243000,-352.57521342,0.00030259,7]
[422917240,1779622243000,-788.5,0.000307,7]
[422917238,1779622243000,-533.23,0.000306,7]
[422917232,1779622243000,-357.28144143,0.00030259,7]
[422917237,1779622243000,-4918.6136598,0.000306,2]
[422917234,1779622243000,-150.0,0.00030341,2]
[422917271,1779622243000,-206.16312494,0.00030892,7]
[422917235,1779622243000,-1000.0,0.00030361,14]
[422917231,1779622243000,-369.82577434,0.00030259,7]
[422917233,1779622243000,-304.90142503,0.00030259,7]
[422917244,1779622243000,-25000.0,0.00030713,10]
[422917269,1779622243000,-208.09880253,0.00030892,5]
[422917301,1779622243000,-239.12418285,0.00030902,7]
[422917272,1779622243000,-216.30835705,0.00030892,7]
[422917306,1779622243000,-476.78641306,0.00030909,14]
[422917310,1779622243000,-310.19006304,0.00030913,7]
[422917307,1779622243000,-317.06553182,0.00030913,7]
[422917299,1779622243000,-154.0,0.000309,30]
[422917309,1779622243000,-373.38253983,0.00030913,7]
[422917312,1779622243000,-197.13653929,0.00030926,7]
[422917311,1779622243000,-250.37885884,0.00030913,7]
[422917322,1779622243000,-216.96817616,0.00030926,7]
[422917323,1779622243000,-500.12861331,0.00030976,7]
[422917313,1779622243000,-194.04830548,0.00030926,7]
[422917318,1779622243000,-249.55353456,0.00030926,2]
[422917314,1779622243000,-186.8459804,0.00030926,7]
[422917308,1779622243000,-174.32367461,0.00030913,7]
[422917316,1779622243000,-236.66658689,0.00030926,7]
[422917317,1779622243000,-185.23686449,0.00030926,7]
[422917320,1779622243000,-247.49700818,0.00030926,7]
[422917319,1779622243000,-234.50309708,0.00030926,7]
[422917321,1779622243000,-218.1076629,0.00030926,2]
[422917325,1779622243000,-151.0,0.00030997,7]
[422917324,1779622243000,-1332.25799173,0.00030993,7]
[422917329,1779622243000,-362.254545,0.00031,6]
[422917332,1779622243000,-800.0,0.00031,11]
[422917328,1779622243000,-571294.36807869,0.00031,120]
[422917327,1779622243000,-306196.90820633,0.00031,120]
[422917330,1779622243000,-208.8304494,0.00031,120]
[422917331,1779622243000,-160.0,0.00031,120]
[422917315,1779622243000,-183.73287599,0.00030926,7]
[422917304,1779622243000,-230.5537881,0.00030902,7]
[422917326,1779622243000,-678.38506137,0.00031,2]
[422917300,1779622243000,-239.5029263,0.00030902,7]
[422917305,1779622243000,-152.63132102,0.00030902,7]
[422917274,1779622243000,-157.97369419,0.00030892,7]
[422917275,1779622243000,-239.27539888,0.00030892,7]
[422917277,1779622243000,-231.12583428,0.00030892,7]
[422917279,1779622243000,-229.46803214,0.00030892,7]
[422917276,1779622243000,-248.98766956,0.00030892,5]
[422917281,1779622243000,-205.03444976,0.00030892,7]
[422917285,1779622243000,-151.0,0.00030899,30]
[422917278,1779622243000,-201.31157192,0.00030892,7]
[422917282,1779622243000,-361.86673365,0.00030899,7]
[422917280,1779622243000,-214.00213272,0.00030892,7]
[422917284,1779622243000,-153.0,0.00030899,30]
[422917283,1779622243000,-467.8799714,0.00030899,7]
[422917287,1779622243000,-378.0,0.00030899,30]
[422917267,1779622243000,-211.88066287,0.00030892,7]
[422917288,1779622243000,-152.0,0.00030899,30]
[422917286,1779622243000,-154.0,0.00030899,30]
[422917303,1779622243000,-217.57000863,0.00030902,7]
[422917298,1779622243000,-154.0,0.000309,30]
[422917297,1779622243000,-250.0,0.000309,30]
[422917295,1779622243000,-153.0,0.000309,30]
[422917296,1779622243000,-152.0,0.000309,30]
[422917302,1779622243000,-157.17269642,0.00030902,7]
[422917291,1779622243000,-475.2461182,0.000309,7]
[422917294,1779622243000,-187.0,0.000309,30]
[422917292,1779622243000,-462.26196007,0.000309,7]
[422917290,1779622243000,-459.56052533,0.000309,7]
[422917289,1779622243000,-155.0,0.00030899,30]
[422917293,1779622243000,-377.8,0.000309,120]
[422917391,1779622244000,-168.68828596,0.00031488,2]
[422917390,1779622244000,-459.47744473,0.00031488,7]
[422917380,1779622244000,-563.38745435,0.00031486,7]
[422917377,1779622244000,-505.0368666,0.00031486,7]
[422917375,1779622244000,-212.67912074,0.00031486,7]
[422917378,1779622244000,-553.05831333,0.00031486,7]
[422917373,1779622244000,-56.454539,0.00031479,13]
[422917374,1779622244000,-239.1525,0.00031479,13]
[422917372,1779622244000,-127.705461,0.00031479,13]
[422917376,1779622244000,-403.72837404,0.00031486,7]
[422917379,1779622244000,-704.938263,0.00031486,7]
[422917384,1779622244000,-548.28016618,0.00031486,7]
[422917382,1779622244000,-505.45278823,0.00031486,7]
[422917387,1779622244000,-581.29170889,0.00031486,7]
[422917381,1779622244000,-492.55361283,0.00031486,7]
[422917385,1779622244000,-559.38243325,0.00031486,7]
[422917371,1779622244000,-184.16,0.00031479,13]
[422917388,1779622244000,-466.74571987,0.00031488,7]
[422917386,1779622244000,-574.98373323,0.00031486,7]
[422917389,1779622244000,-499.95446095,0.00031488,2]
[422917394,1779622244000,-408.59394504,0.00031488,7]
[422917393,1779622244000,-423.76132573,0.00031488,7]
[422917392,1779622244000,-422.66330709,0.00031488,7]
[422917402,1779622244000,-246.69201943,0.00031488,7]
[422917383,1779622244000,-520.63719303,0.00031486,7]
[422917360,1779622244000,-500.0,0.00031192,60]
[422917358,1779622244000,-517.0,0.00031184,8]
[422917359,1779622244000,-500.0,0.00031192,60]
[422917403,1779622244000,-425.34074896,0.00031488,7]
[422917334,1779622244000,-1041.66666667,0.00031,2]
[422917336,1779622244000,-556.05550776,0.00031158,7]
[422917333,1779622244000,-415.69633392,0.00031,11]
[422917335,1779622244000,-200.0,0.00031096,2]
[422917337,1779622244000,-986.77384403,0.00031158,7]
[422917339,1779622244000,-487.62987825,0.00031158,7]
[422917349,1779622244000,-603.08490549,0.00031158,7]
[422917338,1779622244000,-541.52788804,0.00031158,7]
[422917350,1779622244000,-528.86282013,0.00031158,7]
[422917344,1779622244000,-461.01046013,0.00031158,2]
[422917352,1779622244000,-603.98336141,0.00031158,7]
[422917346,1779622244000,-896.68363748,0.00031158,7]
[422917340,1779622244000,-466.83124885,0.00031158,7]
[422917343,1779622244000,-729.52511934,0.00031158,7]
[422917348,1779622244000,-552.2661498,0.00031158,7]
[422917347,1779622244000,-1004.70678628,0.00031158,7]
[422917354,1779622244000,-478.68521051,0.00031158,7]
[422917357,1779622244000,-457.35213755,0.00031158,7]
[422917365,1779622244000,-351.599999,0.000312,7]
[422917356,1779622244000,-535.92216214,0.00031158,7]
[422917368,1779622244000,-332.435554,0.000312,7]
[422917370,1779622244000,-152.0,0.000313,4]
[422917362,1779622244000,-332.066666,0.000312,7]
[422917367,1779622244000,-332.066666,0.000312,7]
[422917369,1779622244000,-9227.47,0.000313,14]
[422917341,1779622244000,-505.01364262,0.00031158,7]
[422917395,1779622244000,-306.70069591,0.00031488,7]
[422917396,1779622244000,-416.19760507,0.00031488,5]
[422917430,1779622244000,-159.96693047,0.00031496,7]
[422917432,1779622244000,-433.82475941,0.00031496,7]
[422917431,1779622244000,-693.39294011,0.00031496,7]
[422917433,1779622244000,-398.40439309,0.00031496,7]
[422917434,1779622244000,-479.00585261,0.00031498,7]
[422917435,1779622244000,-333.36086477,0.00031498,7]
[422917436,1779622244000,-150.7405911,0.00031498,7]
[422917437,1779622244000,-153.28576471,0.00031498,7]
[422917438,1779622244000,-159.11276416,0.00031498,7]
[422917439,1779622244000,-478.24836569,0.00031498,7]
[422917441,1779622244000,-160.33337928,0.00031498,7]
[422917446,1779622244000,-314.34539283,0.00031498,7]
[422917443,1779622244000,-231.78285539,0.00031498,7]
[422917447,1779622244000,-435.14001725,0.00031498,7]
[422917448,1779622244000,-461.10757621,0.00031498,7]
[422917445,1779622244000,-225.79152763,0.00031498,7]
[422917442,1779622244000,-174.29274309,0.00031498,7]
[422917444,1779622244000,-151.22645993,0.00031498,7]
[422917449,1779622244000,-305.26264204,0.00031498,7]
[422917451,1779622244000,-200.72478961,0.000315,2]
[422917450,1779622244000,-344.6361041,0.00031498,7]
[422917452,1779622244000,-150.0,0.000315,2]
[422917453,1779622244000,-788.5,0.000315,7]
[422917454,1779622244000,-1142.64,0.000315,7]
[422917398,1779622244000,-485.17621447,0.00031488,2]
[422917429,1779622244000,-542.80010048,0.00031495,7]
[422917428,1779622244000,-434.51436024,0.00031494,7]
[422917440,1779622244000,-336.80208089,0.00031498,7]
[422917427,1779622244000,-427.56459958,0.00031494,7]
[422917401,1779622244000,-432.61671409,0.00031488,7]
[422917426,1779622244000,-228.58452247,0.00031494,7]
[422917400,1779622244000,-412.32624987,0.00031488,7]
[422917397,1779622244000,-384.59257977,0.00031488,7]
[422917399,1779622244000,-427.37817693,0.00031488,7]
[422917406,1779622244000,-315.94738838,0.00031488,7]
[422917404,1779622244000,-164.86656064,0.00031488,2]
[422917407,1779622244000,-478.55079775,0.00031488,7]
[422917405,1779622244000,-236.01216299,0.00031488,7]
[422917413,1779622244000,-232.87271723,0.00031488,7]
[422917412,1779622244000,-458.93606428,0.00031488,7]
[422917415,1779622244000,-389.94632477,0.00031488,7]
[422917409,1779622244000,-462.25166857,0.00031488,7]
[422917414,1779622244000,-225.05675939,0.00031488,7]
[422917422,1779622244000,-330.68399579,0.00031494,7]
[422917408,1779622244000,-497.97533913,0.00031488,5]
[422917410,1779622244000,-402.62314383,0.00031488,7]
[422917411,1779622244000,-380.31998366,0.00031488,7]
[422917417,1779622244000,-428.00426545,0.00031488,7]
[422917418,1779622244000,-173.25509771,0.00031488,7]
[422917420,1779622244000,-410.06889952,0.00031488,7]
[422917423,1779622244000,-369.7905925,0.00031494,7]
[422917421,1779622244000,-425.19887536,0.00031494,7]
[422917425,1779622244000,-177.22374824,0.00031494,7]
[422917416,1779622244000,-164.86312471,0.00031488,7]
[422917424,1779622244000,-404.36817186,0.00031494,7]
[422917419,1779622244000,-250.373153,0.00031488,7]
[422917487,1779622245000,-673.35152349,0.00031758,7]
[422917491,1779622245000,-1339.60904837,0.00031758,7]
[422917485,1779622245000,-650.173171,0.00031758,7]
[422917497,1779622245000,-714.56288285,0.00031758,7]
[422917493,1779622245000,-804.11320732,0.00031758,7]
[422917490,1779622245000,-736.3548664,0.00031758,7]
[422917494,1779622245000,-705.15042684,0.00031758,7]
[422917495,1779622245000,-805.31114855,0.00031758,7]
[422917510,1779622245000,-155.0,0.00031899,30]
[422917484,1779622245000,-722.03718405,0.00031758,7]
[422917502,1779622245000,-250.0,0.00031838,7]
[422917489,1779622245000,-614.68061351,0.00031758,2]
[422917499,1779622245000,-9227.47,0.000318,14]
[422917522,1779622245000,-3686.28586234,0.00032,120]
[422917498,1779622245000,-609.80285006,0.00031758,7]
[422917500,1779622245000,-250.0,0.00031838,7]
[422917501,1779622245000,-250.0,0.00031838,7]
[422917509,1779622245000,-152.0,0.00031899,30]
[422917504,1779622245000,-150.0,0.00031858,2]
[422917508,1779622245000,-378.0,0.00031899,30]
[422917507,1779622245000,-154.0,0.00031899,30]
[422917505,1779622245000,-153.0,0.00031899,30]
[422917506,1779622245000,-151.0,0.00031899,30]
[422917511,1779622245000,-377.8,0.000319,120]
[422917521,1779622245000,-431.524,0.00032,120]
[422917512,1779622245000,-187.0,0.000319,30]
[422917488,1779622245000,-972.70015911,0.00031758,7]
[422917503,1779622245000,-250.0,0.00031838,7]
[422917486,1779622245000,-622.44166513,0.00031758,7]
[422917456,1779622245000,-223.12164843,0.00031509,7]
[422917496,1779622245000,-638.24694735,0.00031758,7]
[422917458,1779622245000,-348.64734923,0.00031509,7]
[422917459,1779622245000,-602.43112561,0.00031509,7]
[422917455,1779622245000,-533.23,0.000315,7]
[422917457,1779622245000,-475.59829773,0.00031509,7]
[422917461,1779622245000,-465.28509456,0.00031509,7]
[422917469,1779622245000,-469.00619416,0.00031522,7]
[422917470,1779622245000,-494.99401636,0.00031522,7]
[422917460,1779622245000,-560.07380975,0.00031509,7]
[422917463,1779622245000,-394.27307859,0.00031522,7]
[422917462,1779622245000,-500.75771768,0.00031509,7]
[422917464,1779622245000,-373.69196081,0.00031522,7]
[422917465,1779622245000,-367.46575197,0.00031522,7]
[422917468,1779622245000,-499.10706911,0.00031522,2]
[422917492,1779622245000,-1195.5781833,0.00031758,7]
[422917466,1779622245000,-473.33317377,0.00031522,7]
[422917471,1779622245000,-436.2153258,0.00031522,2]
[422917474,1779622245000,-666.83815108,0.00031573,7]
[422917473,1779622245000,-410.92582337,0.00031522,7]
[422917483,1779622245000,-1315.6984587,0.00031758,7]
[422917482,1779622245000,-741.40734368,0.00031758,7]
[422917472,1779622245000,-433.93635233,0.00031522,7]
[422917477,1779622245000,-717.41595615,0.00031574,7]
[422917478,1779622245000,-254.97559884,0.00031644,40]
[422917480,1779622245000,-517.0,0.00031739,9]
[422917479,1779622245000,-358.3800486,0.00031663,57]
[422917475,1779622245000,-728.71071458,0.00031573,7]
[422917481,1779622245000,-379.07404466,0.00031751,58]
[422917476,1779622245000,-704.65947217,0.00031573,7]
[422917467,1779622245000,-370.47372898,0.00031522,7]
[422917517,1779622245000,-154.0,0.000319,30]
[422917541,1779622245000,-1644.62307338,0.00032358,7]
[422917514,1779622245000,-152.0,0.000319,30]
[422917547,1779622245000,-768.35076688,0.00032358,2]
[422917556,1779622245000,-184.16,0.00032574,13]
[422917550,1779622245000,-1006.63893569,0.00032358,7]
[422917552,1779622245000,-762.25356258,0.00032358,7]
[422917557,1779622245000,-239.1525,0.00032574,13]
[422917555,1779622245000,-184.16,0.00032574,13]
[422917553,1779622245000,-200.0,0.00032469,2]
[422917554,1779622245000,-1005.35674929,0.000325,7]
[422917551,1779622245000,-797.80868419,0.00032358,7]
[422917560,1779622245000,-4915.98631724,0.000328,2]
[422917571,1779622245000,-800.0,0.00032877,30]
[422917561,1779622245000,-500.0,0.00032836,60]
[422917572,1779622245000,-800.0,0.00032877,30]
[422917567,1779622245000,-800.0,0.00032877,30]
[422917564,1779622245000,-1003.16,0.00032877,2]
[422917565,1779622245000,-156.0,0.00032877,2]
[422917569,1779622245000,-800.0,0.00032877,30]
[422917562,1779622245000,-500.0,0.00032836,60]
[422917568,1779622245000,-800.0,0.00032877,30]
[422917566,1779622245000,-800.0,0.00032877,30]
[422917570,1779622245000,-800.0,0.00032877,30]
[422917573,1779622245000,-800.0,0.00032877,30]
[422917575,1779622245000,-800.0,0.00032877,30]
[422917576,1779622245000,-800.0,0.00032877,30]
[422917577,1779622245000,-800.0,0.00032877,30]
[422917574,1779622245000,-800.0,0.00032877,30]
[422917515,1779622245000,-250.0,0.000319,30]
[422917549,1779622245000,-1494.47272913,0.00032358,7]
[422917558,1779622245000,-533.23,0.000326,7]
[422917563,1779622245000,-517.0,0.00032848,10]
[422917548,1779622245000,-1674.51131046,0.00032358,7]
[422917559,1779622245000,-9227.47,0.000327,14]
[422917516,1779622245000,-154.0,0.000319,30]
[422917518,1779622245000,-9892.5489,0.000319,2]
[422917513,1779622245000,-153.0,0.000319,30]
[422917519,1779622245000,-200.27047624,0.00032,120]
[422917520,1779622245000,-167.46077136,0.00032,120]
[422917525,1779622245000,-533.23,0.00032,7]
[422917534,1779622245000,-833.54768885,0.0003217,7]
[422917524,1779622245000,-1302.56323357,0.00032,30]
[422917526,1779622245000,-184.16,0.00032027,13]
[422917531,1779622245000,-770.50936848,0.00032082,7]
[422917527,1779622245000,-184.16,0.00032027,13]
[422917530,1779622245000,-2203.36,0.00032058,14]
[422917529,1779622245000,-200.0,0.00032055,2]
[422917523,1779622245000,-1761.67189906,0.00032,2]
[422917540,1779622245000,-1091.38415989,0.00032315,2]
[422917544,1779622245000,-778.05208141,0.00032358,7]
[422917528,1779622245000,-239.1525,0.00032027,13]
[422917543,1779622245000,-812.71646375,0.00032358,7]
[422917545,1779622245000,-841.68940437,0.00032358,7]
[422917542,1779622245000,-902.54648007,0.00032358,7]
[422917538,1779622245000,-517.0,0.00032294,9]
[422917539,1779622245000,-909.67296179,0.000323,2]
[422917546,1779622245000,-1215.87519889,0.00032358,7]
[422917536,1779622245000,-1142.64,0.000322,7]
[422917535,1779622245000,-788.5,0.000322,7]
[422917533,1779622245000,-1037.61928289,0.0003217,7]
[422917532,1779622245000,-753.03890702,0.00032105,7]
[422917537,1779622245000,-151.0,0.0003221,5]
[422917620,1779622246000,-151.0,0.00032877,7]
[422917621,1779622246000,-151.0,0.00032877,7]
[422917615,1779622246000,-833.317687,0.00032877,7]
[422917618,1779622246000,-151.0,0.00032877,7]
[422917616,1779622246000,-151.0,0.00032877,7]
[422917614,1779622246000,-151.0,0.00032877,7]
[422917613,1779622246000,-833.317687,0.00032877,7]
[422917617,1779622246000,-833.317687,0.00032877,7]
[422917619,1779622246000,-151.0,0.00032877,7]
[422917624,1779622246000,-151.0,0.00032877,7]
[422917623,1779622246000,-151.0,0.00032877,7]
[422917622,1779622246000,-151.0,0.00032877,7]
[422917612,1779622246000,-833.317687,0.00032877,7]
[422917625,1779622246000,-594.417423,0.00032877,7]
[422917650,1779622246000,-151.0,0.00032877,7]
[422917627,1779622246000,-151.0,0.00032877,7]
[422917626,1779622246000,-151.0,0.00032877,7]
[422917629,1779622246000,-151.0,0.00032877,7]
[422917634,1779622246000,-151.0,0.00032877,7]
[422917637,1779622246000,-503.628241,0.00032877,7]
[422917632,1779622246000,-594.417423,0.00032877,7]
[422917638,1779622246000,-151.0,0.00032877,7]
[422917628,1779622246000,-594.417423,0.00032877,7]
[422917630,1779622246000,-594.417423,0.00032877,7]
[422917633,1779622246000,-151.0,0.00032877,7]
[422917635,1779622246000,-151.0,0.00032877,7]
[422917631,1779622246000,-151.0,0.00032877,7]
[422917640,1779622246000,-503.628241,0.00032877,7]
[422917611,1779622246000,-803.804465,0.00032877,7]
[422917636,1779622246000,-151.0,0.00032877,7]
[422917610,1779622246000,-803.804465,0.00032877,7]
[422917582,1779622246000,-800.0,0.00032877,30]
[422917606,1779622246000,-151.0,0.00032877,7]
[422917578,1779622246000,-800.0,0.00032877,30]
[422917642,1779622246000,-503.628241,0.00032877,7]
[422917579,1779622246000,-800.0,0.00032877,30]
[422917583,1779622246000,-800.0,0.00032877,30]
[422917580,1779622246000,-716.0,0.00032877,30]
[422917581,1779622246000,-800.0,0.00032877,30]
[422917584,1779622246000,-800.0,0.00032877,30]
[422917586,1779622246000,-800.0,0.00032877,30]
[422917597,1779622246000,-162.215414,0.00032877,7]
[422917596,1779622246000,-350.5,0.00032877,2]
[422917598,1779622246000,-162.215414,0.00032877,7]
[422917587,1779622246000,-151.0,0.00032877,7]
[422917585,1779622246000,-800.0,0.00032877,30]
[422917588,1779622246000,-151.0,0.00032877,7]
[422917609,1779622246000,-803.804465,0.00032877,7]
[422917589,1779622246000,-151.0,0.00032877,7]
[422917591,1779622246000,-289.401155,0.00032877,7]
[422917595,1779622246000,-151.0,0.00032877,7]
[422917592,1779622246000,-289.401155,0.00032877,7]
[422917593,1779622246000,-289.401155,0.00032877,7]
[422917594,1779622246000,-289.401155,0.00032877,7]
[422917599,1779622246000,-162.215414,0.00032877,7]
[422917601,1779622246000,-151.0,0.00032877,7]
[422917603,1779622246000,-151.0,0.00032877,7]
[422917605,1779622246000,-151.0,0.00032877,7]
[422917604,1779622246000,-151.0,0.00032877,7]
[422917602,1779622246000,-151.0,0.00032877,7]
[422917600,1779622246000,-162.215414,0.00032877,7]
[422917608,1779622246000,-803.804465,0.00032877,7]
[422917607,1779622246000,-151.0,0.00032877,7]
[422917590,1779622246000,-251.337861,0.00032877,7]
[422917645,1779622246000,-151.0,0.00032877,7]
[422917641,1779622246000,-151.0,0.00032877,7]
[422917705,1779622246000,-1142.64,0.000331,30]
[422917679,1779622246000,-153.0,0.00032899,30]
[422917682,1779622246000,-378.0,0.00032899,30]
[422917684,1779622246000,-155.0,0.00032899,30]
[422917680,1779622246000,-151.0,0.00032899,30]
[422917681,1779622246000,-154.0,0.00032899,30]
[422917683,1779622246000,-152.0,0.00032899,30]
[422917688,1779622246000,-152.0,0.000329,30]
[422917689,1779622246000,-250.0,0.000329,30]
[422917685,1779622246000,-377.8,0.000329,120]
[422917690,1779622246000,-154.0,0.000329,30]
[422917691,1779622246000,-154.0,0.000329,30]
[422917687,1779622246000,-153.0,0.000329,30]
[422917703,1779622246000,-1000.25722662,0.00033065,7]
[422917693,1779622246000,-76721.02895072,0.00033,5]
[422917676,1779622246000,-500.0,0.00032877,2]
[422917704,1779622246000,-788.5,0.000331,30]
[422917692,1779622246000,-903.64668842,0.00032999,7]
[422917694,1779622246000,-52211.78123188,0.00033,2]
[422917695,1779622246000,-797.42521035,0.00033,7]
[422917700,1779622246000,-2000.0,0.00033,7]
[422917697,1779622246000,-418.4518521,0.00033,5]
[422917701,1779622246000,-1016.89438024,0.00033012,7]
[422917702,1779622246000,-350.0,0.00033014,5]
[422917698,1779622246000,-157.69142296,0.00033,120]
[422917699,1779622246000,-422.521772,0.00033,14]
[422917706,1779622246000,-222.8,0.00033151,13]
[422917643,1779622246000,-151.0,0.00032877,7]
[422917709,1779622246000,-1083.05577608,0.00033257,7]
[422917707,1779622246000,-222.79,0.00033151,13]
[422917708,1779622246000,-1973.54768805,0.00033257,7]
[422917696,1779622246000,-38013.8726415,0.00033,3]
[422917674,1779622246000,-500.0,0.00032877,2]
[422917686,1779622246000,-187.0,0.000329,30]
[422917670,1779622246000,-151.0,0.00032877,7]
[422917639,1779622246000,-151.0,0.00032877,7]
[422917651,1779622246000,-151.0,0.00032877,7]
[422917675,1779622246000,-500.0,0.00032877,2]
[422917649,1779622246000,-151.0,0.00032877,7]
[422917647,1779622246000,-151.0,0.00032877,7]
[422917644,1779622246000,-503.628241,0.00032877,7]
[422917646,1779622246000,-151.0,0.00032877,7]
[422917663,1779622246000,-530.336506,0.00032877,7]
[422917664,1779622246000,-151.0,0.00032877,7]
[422917653,1779622246000,-151.0,0.00032877,7]
[422917665,1779622246000,-530.336506,0.00032877,7]
[422917654,1779622246000,-151.0,0.00032877,7]
[422917656,1779622246000,-151.0,0.00032877,7]
[422917652,1779622246000,-151.0,0.00032877,7]
[422917655,1779622246000,-151.0,0.00032877,7]
[422917648,1779622246000,-151.0,0.00032877,7]
[422917661,1779622246000,-530.336506,0.00032877,7]
[422917657,1779622246000,-151.0,0.00032877,7]
[422917666,1779622246000,-151.0,0.00032877,7]
[422917669,1779622246000,-151.0,0.00032877,7]
[422917678,1779622246000,-175.20586195,0.00032877,120]
[422917671,1779622246000,-151.0,0.00032877,7]
[422917672,1779622246000,-500.0,0.00032877,2]
[422917677,1779622246000,-419.59953626,0.00032877,2]
[422917668,1779622246000,-248.533282,0.00032877,7]
[422917667,1779622246000,-151.0,0.00032877,7]
[422917659,1779622246000,-530.336506,0.00032877,7]
[422917662,1779622246000,-151.0,0.00032877,7]
[422917658,1779622246000,-151.0,0.00032877,7]
[422917660,1779622246000,-151.0,0.00032877,7]
[422917673,1779622246000,-500.0,0.00032877,2]
[422917751,1779622247000,-154.0,0.000339,30]
[422917750,1779622247000,-154.0,0.000339,30]
[422917748,1779622247000,-152.0,0.000339,30]
[422917745,1779622247000,-377.8,0.000339,120]
[422917747,1779622247000,-153.0,0.000339,30]
[422917746,1779622247000,-187.0,0.000339,30]
[422917737,1779622247000,-9227.47,0.000338,14]
[422917735,1779622247000,-9227.47,0.000337,14]
[422917740,1779622247000,-154.0,0.00033899,30]
[422917754,1779622247000,-184.16,0.00033944,13]
[422917739,1779622247000,-151.0,0.00033899,30]
[422917749,1779622247000,-250.0,0.000339,30]
[422917755,1779622247000,-239.1525,0.00033944,13]